fUSD/lending_fUSD_20250205
["ID","MTS","AMOUNT","RATE_DAILY","PERIOD"]
[351798543,1738792241842,-500.0,0.00010409,2]
[351798545,1738792241851,-500.0,0.00010409,2]
[351798547,1738792241860,-500.0,0.00010409,2]
[351798549,1738792241869,-500.0,0.00010409,2]
[351798551,1738792241878,-500.0,0.0001041,2]
[351798553,1738792241887,-500.0,0.0001041,2]
[351798555,1738792241896,-500.0,0.0001041,2]
[351798557,1738792241905,-500.0,0.0001041,2]
[351798559,1738792241915,-218.61848394,0.0001041,2]
[351798561,1738792241924,-500.0,0.0001041,2]
[351798563,1738792241933,-500.0,0.0001041,2]
[351798565,1738792241942,-500.0,0.0001041,2]
[351798567,1738792241951,-500.0,0.0001041,2]
[351798569,1738792241961,-500.0,0.0001041,2]
[351798571,1738792241971,-500.0,0.0001041,2]
[351798573,1738792241986,-272.84590624,0.0001041,2]
[351798575,1738792241995,-500.0,0.0001041,2]
[351798577,1738792242004,-500.0,0.0001041,2]
[351798579,1738792242013,-500.0,0.0001041,2]
[351798581,1738792242022,-500.0,0.0001041,2]
[351798583,1738792242033,-500.0,0.0001041,2]
[351798586,1738792242043,-500.0,0.0001041,2]
[351798588,1738792242052,-500.0,0.0001041,2]
[351798590,1738792242061,-500.0,0.0001041,2]
[351798592,1738792242071,-500.0,0.0001041,2]
[351798594,1738792242082,-500.0,0.0001041,2]
[351798596,1738792242091,-500.0,0.0001041,2]
[351798598,1738792242100,-500.0,0.0001041,2]
[351798600,1738792242110,-500.0,0.0001041,2]
[351798602,1738792242119,-634.29337146,0.0001041,2]
[351798604,1738792242130,-500.0,0.0001041,2]
[351798606,1738792242139,-500.0,0.0001041,2]
[351798608,1738792242148,-562.2708819,0.0001041,2]
[351798610,1738792242157,-500.0,0.0001041,2]
[351798612,1738792242167,-500.0,0.0001041,2]
[351798614,1738792242176,-500.0,0.0001041,2]
[351798616,1738792242186,-500.0,0.0001041,2]
[351798618,1738792242195,-500.0,0.0001041,2]
[351798620,1738792242205,-500.0,0.0001041,2]
[351798622,1738792242214,-500.0,0.0001041,2]
[351798624,1738792242223,-500.0,0.0001041,2]
[351798626,1738792242235,-500.0,0.0001041,2]
[351798628,1738792242245,-500.0,0.0001041,2]
[351798630,1738792242255,-493.7,0.0001041,2]
[351798632,1738792242264,-500.0,0.0001041,2]
[351798634,1738792242274,-500.0,0.0001041,2]
[351798636,1738792242283,-539.65426459,0.0001041,2]
[351798638,1738792242292,-232.39355523,0.0001041,2]
[351798640,1738792242301,-347.15,0.0001041,2]
[351798642,1738792242311,-317.92554862,0.0001041,2]
[351798644,1738792242320,-500.0,0.0001041,2]
[351798646,1738792242329,-500.0,0.0001041,2]
[351798648,1738792242338,-500.0,0.0001041,2]
[351798649,1738792242347,-442.3,0.0001041,2]
[351798651,1738792242356,-277.9,0.0001041,2]
[351798653,1738792242365,-500.0,0.0001041,2]
[351798655,1738792242374,-252.4,0.0001041,2]
[351798659,1738792242384,-573.81,0.0001041,2]
[351798662,1738792242394,-186.43,0.0001041,2]
[351798665,1738792242404,-375.08,0.0001041,2]
[351798668,1738792242413,-500.0,0.0001041,2]
[351798671,1738792242423,-403.12,0.0001041,2]
[351798674,1738792242432,-542.1,0.0001041,2]
[351798677,1738792242442,-497.44,0.0001041,2]
[351798678,1738792242451,-500.0,0.0001041,2]
[351798681,1738792242460,-500.0,0.0001041,2]
[351798683,1738792242469,-289.56,0.0001041,2]
[351798686,1738792242482,-455.77,0.0001041,2]
[351798687,1738792242491,-500.0,0.0001041,2]
[351798691,1738792242501,-178.67,0.0001041,2]
[351798693,1738792242511,-206.78,0.0001041,2]
[351798697,1738792242521,-329.29,0.0001041,2]
[351798699,1738792242530,-500.0,0.0001041,2]
[351798702,1738792242540,-356.16,0.0001041,2]
[351798703,1738792242550,-152.202475,0.00010429,2]
[351798706,1738792242559,-156.731078,0.00010429,2]
[351798707,1738792242568,-1000.0,0.00010438,2]
[351798709,1738792242577,-1092.09,0.00010455,2]
[351798711,1738792242587,-500.0,0.00010546,2]
[351798713,1738792242596,-500.0,0.00010546,2]
[351798715,1738792242608,-500.0,0.00010546,2]
[351798717,1738792242618,-500.0,0.00010546,2]
[351798719,1738792242628,-500.0,0.00010546,2]
[351798722,1738792242639,-500.0,0.00010546,2]
[351798724,1738792242648,-500.0,0.00010546,2]
[351798726,1738792242658,-500.0,0.00010546,2]
[351798728,1738792242667,-500.0,0.00010546,2]
[351798729,1738792242677,-500.0,0.00010546,2]
[351798731,1738792242686,-500.0,0.00010546,2]
[351798733,1738792242696,-591.48,0.00010546,2]
[351798736,1738792242706,-500.0,0.00010546,2]
[351798737,1738792242716,-500.0,0.00010546,2]
[351798739,1738792242726,-500.0,0.00010546,2]
[351798741,1738792242737,-527.66,0.00010546,2]
[351798743,1738792242749,-500.0,0.00010546,2]
[351798745,1738792242759,-500.0,0.00010546,2]
[351798747,1738792242769,-500.0,0.00010546,2]
[351798749,1738792242779,-275.22,0.00010546,2]
[351798751,1738792242788,-500.0,0.00010546,2]
[351798753,1738792242797,-500.0,0.00010546,2]
[351798755,1738792242807,-500.0,0.00010546,2]
[351798757,1738792242816,-500.0,0.00010546,2]
[351798759,1738792242826,-500.0,0.00010546,2]
[351798761,1738792242836,-487.53,0.00010546,2]
[351798763,1738792242845,-500.0,0.00010546,2]
[351798765,1738792242855,-500.0,0.00010546,2]
[351798767,1738792242865,-500.0,0.00010546,2]
[351798769,1738792242875,-500.0,0.00010546,2]
[351798771,1738792242884,-500.0,0.00010546,2]
[351798773,1738792242894,-167.96,0.00010546,2]
[351798775,1738792242905,-577.57,0.00010546,2]
[351798777,1738792242915,-500.0,0.00010546,2]
[351798779,1738792242925,-500.0,0.00010546,2]
[351798781,1738792242934,-500.0,0.00010546,2]
[351798783,1738792242944,-530.27,0.00010546,2]
[351798786,1738792242955,-500.0,0.00010546,2]
[351798788,1738792242965,-500.0,0.00010546,2]
[351798789,1738792242974,-500.0,0.00010546,2]
[351798791,1738792242986,-500.0,0.00010546,2]
[351798794,1738792242995,-500.0,0.00010546,2]
[351798796,1738792243004,-500.0,0.00010546,2]
[351798798,1738792243013,-397.89,0.00010546,2]
[351798800,1738792243023,-500.0,0.00010546,2]
[351798801,1738792243034,-500.0,0.00010546,2]
[351798803,1738792243043,-500.0,0.00010546,2]
[351798805,1738792243052,-500.0,0.00010546,2]
[351798807,1738792243062,-500.0,0.00010546,2]
[351798809,1738792243071,-500.0,0.00010546,2]
[351798811,1738792243081,-195.99,0.00010546,2]
[351798813,1738792243090,-500.0,0.00010546,2]
[351798815,1738792243100,-500.0,0.00010546,2]
[351798818,1738792243110,-454.61,0.00010546,2]
[351798820,1738792243119,-500.0,0.00010546,2]
[351798821,1738792243129,-244.92,0.00010546,2]
[351798823,1738792243139,-500.0,0.00010546,2]
[351798825,1738792243148,-500.0,0.00010546,2]
[351798827,1738792243157,-500.0,0.00010546,2]
[351798829,1738792243166,-500.0,0.00010546,2]
[351798831,1738792243176,-500.0,0.00010546,2]
[351798833,1738792243187,-500.0,0.00010546,2]
[351798836,1738792243196,-428.03,0.00010546,2]
[351798838,1738792243206,-500.0,0.00010546,2]
[351798855,1738792243376,-395.59,0.00010546,2]
[351798857,1738792243387,-500.0,0.00010546,2]
[351798859,1738792243397,-549.3,0.00010546,2]
[351798861,1738792243406,-152.202475,0.00010546,2]
[351798863,1738792243416,-500.0,0.00010546,2]
[351798865,1738792243426,-500.0,0.00010546,2]
[351798867,1738792243436,-500.0,0.00010546,2]
[351798869,1738792243445,-500.0,0.00010546,2]
[351798871,1738792243455,-1037.66,0.00010546,2]
[351798873,1738792243464,-331.82,0.00010546,2]
[351798875,1738792243474,-500.0,0.00010546,2]
[351798877,1738792243486,-500.0,0.00010546,2]
[351798879,1738792243495,-500.0,0.00010546,2]
[351798881,1738792243506,-500.0,0.00010546,2]
[351798883,1738792243515,-187.9,0.00010546,2]
[351798885,1738792243524,-500.0,0.00010546,2]
[351798887,1738792243535,-500.0,0.00010546,2]
[351798889,1738792243545,-500.0,0.00010546,2]
[351798891,1738792243556,-491.2,0.00010546,2]
[351798894,1738792243566,-500.0,0.00010546,2]
[351798895,1738792243576,-500.0,0.00010546,2]
[351798898,1738792243585,-500.0,0.00010546,2]
[351798900,1738792243595,-500.0,0.00010546,2]
[351798901,1738792243605,-500.0,0.00010546,2]
[351798904,1738792243616,-223.45,0.00010546,2]
[351798906,1738792243625,-500.0,0.00010546,2]
[351798908,1738792243636,-500.0,0.00010546,2]
[351798909,1738792243645,-547.27,0.00010546,2]
[351798912,1738792243655,-781.52,0.00010546,2]
[351798914,1738792243665,-500.0,0.00010546,2]
[351798916,1738792243675,-500.0,0.00010546,2]
[351798918,1738792243685,-500.0,0.00010546,2]
[351798920,1738792243694,-500.0,0.00010546,2]
[351798922,1738792243704,-168.17,0.00010546,2]
[351798924,1738792243714,-500.0,0.00010546,2]
[351798926,1738792243723,-500.0,0.00010546,2]
[351798928,1738792243734,-500.0,0.00010546,2]
[351798929,1738792243743,-510.37,0.00010546,2]
[351798932,1738792243754,-500.0,0.00010546,2]
[351798934,1738792243764,-160.31,0.00010546,2]
[351798936,1738792243774,-505.74,0.00010546,2]
[351798938,1738792243784,-500.0,0.00010546,2]
[351798940,1738792243794,-568.47,0.00010546,2]
[351798942,1738792243803,-500.0,0.00010546,2]
[351798943,1738792243812,-500.0,0.00010546,2]
[351798946,1738792243822,-500.0,0.00010546,2]
[351798947,1738792243831,-500.0,0.00010546,2]
[351798949,1738792243841,-500.0,0.00010546,2]
[351798952,1738792243852,-500.0,0.00010546,2]
[351798954,1738792243868,-500.0,0.00010546,2]
[351798956,1738792243880,-500.0,0.00010546,2]
[351798958,1738792243891,-500.0,0.00010546,2]
[351798960,1738792243902,-500.0,0.00010546,2]
[351798961,1738792243912,-500.0,0.00010546,2]
[351798964,1738792243922,-500.0,0.00010546,2]
[351798966,1738792243933,-500.0,0.00010546,2]
[351798967,1738792243946,-500.0,0.00010546,2]
[351798969,1738792243957,-625.36,0.00010546,2]
[351798972,1738792243967,-551.81,0.00010546,2]
[351798974,1738792243978,-500.0,0.00010546,2]
[351798976,1738792243989,-500.0,0.00010546,2]
[351798978,1738792243998,-500.0,0.00010546,2]
[351798980,1738792244008,-500.0,0.00010546,2]
[351798982,1738792244017,-500.0,0.00010546,2]
[351798984,1738792244028,-500.0,0.00010546,2]
[351798986,1738792244041,-500.0,0.00010546,2]
[351798988,1738792244051,-500.0,0.00010546,2]
[351798989,1738792244061,-345.8,0.00010546,2]
[351798990,1738792244072,-1137.64,0.00010546,2]
[351798991,1738792244081,-500.0,0.00010546,2]
[351798992,1738792244093,-500.0,0.00010546,2]
[351798993,1738792244103,-500.0,0.00010546,2]
[351798994,1738792244113,-500.0,0.00010546,2]
[351798995,1738792244123,-500.0,0.00010546,2]
[351798996,1738792244134,-500.0,0.00010546,2]
[351798997,1738792244144,-500.0,0.00010546,2]
[351798998,1738792244154,-590.33,0.00010546,2]
[351798999,1738792244164,-500.0,0.00010546,2]
[351799000,1738792244174,-500.0,0.00010546,2]
[351799002,1738792244185,-500.0,0.00010546,2]
[351799004,1738792244195,-500.0,0.00010546,2]
[351799006,1738792244204,-500.0,0.00010546,2]
[351799008,1738792244213,-500.0,0.00010546,2]
[351799010,1738792244223,-500.0,0.00010546,2]
[351799012,1738792244234,-500.0,0.00010546,2]
[351799014,1738792244244,-500.0,0.00010546,2]
[351799016,1738792244253,-500.0,0.00010546,2]
[351799018,1738792244262,-156.731078,0.00010546,2]
[351799020,1738792244272,-500.0,0.00010546,2]
[351799022,1738792244281,-500.0,0.00010546,2]
[351799024,1738792244291,-500.0,0.00010546,2]
[351799026,1738792244300,-500.0,0.00010546,2]
[351799028,1738792244310,-500.0,0.00010546,2]
[351799030,1738792244320,-500.0,0.00010546,2]
[351799032,1738792244329,-500.0,0.00010546,2]
[351799034,1738792244339,-500.0,0.00010546,2]
[351799036,1738792244348,-236.15556763,0.00010546,2]
[351799038,1738792244357,-500.0,0.00010546,2]
[351799040,1738792244367,-500.0,0.00010546,2]
[351799042,1738792244376,-500.0,0.00010546,2]
[351799044,1738792244385,-500.0,0.00010546,2]
[351799046,1738792244395,-500.0,0.00010546,2]
[351799048,1738792244404,-500.0,0.00010546,2]
[351799050,1738792244414,-500.0,0.00010547,2]
[351799052,1738792244426,-587.34,0.00010547,2]
[351799054,1738792244436,-500.0,0.00010547,2]
[351799056,1738792244447,-500.0,0.00010547,2]
[351799058,1738792244457,-500.0,0.00010547,2]
[351799060,1738792244466,-500.0,0.00010547,2]
[351799062,1738792244475,-500.0,0.00010547,2]
[351799064,1738792244486,-500.0,0.00010547,2]
[351799065,1738792244495,-500.0,0.00010547,2]
[351799067,1738792244504,-202.53098013,0.00010547,2]
[351799069,1738792244513,-500.0,0.00010547,2]
[351799071,1738792244523,-500.0,0.00010547,2]
[351799073,1738792244532,-255.47105073,0.00010547,2]
[351799075,1738792244541,-524.29,0.00010547,2]
[351799077,1738792244550,-500.0,0.00010547,2]
[351799079,1738792244560,-500.0,0.00010547,2]
[351799081,1738792244569,-500.0,0.00010547,2]
[351799083,1738792244578,-500.0,0.00010547,2]
[351799085,1738792244587,-500.0,0.00010547,2]
[351799087,1738792244596,-500.0,0.00010547,2]
[351799089,1738792244605,-536.43085774,0.00010547,2]
[351799091,1738792244614,-500.0,0.00010547,2]
[351799092,1738792244623,-500.0,0.00010547,2]
[351799094,1738792244632,-316.51,0.00010547,2]
[351799096,1738792244641,-427.37144755,0.00010547,2]
[351799098,1738792244651,-500.0,0.00010547,2]
[351799100,1738792244661,-500.0,0.00010547,2]
[351799102,1738792244670,-500.0,0.00010547,2]
[351799104,1738792244679,-500.0,0.00010547,2]
[351799106,1738792244688,-500.0,0.00010547,2]
[351799108,1738792244698,-500.0,0.00010547,2]
[351799110,1738792244707,-548.34,0.00010547,2]
[351799112,1738792244715,-516.92,0.00010547,2]
[351799114,1738792244724,-210.14,0.00010547,2]
[351799116,1738792244734,-517.2,0.00010547,2]
[351799118,1738792244743,-525.88,0.00010547,2]
[351799120,1738792244752,-500.0,0.00010547,2]
[351799122,1738792244761,-374.96,0.00010547,2]
[351799124,1738792244770,-500.0,0.00010547,2]
[351799126,1738792244779,-500.0,0.00010547,2]
[351799128,1738792244788,-196.18,0.00010547,2]
[351799130,1738792244797,-500.0,0.00010547,2]
[351799132,1738792244806,-500.0,0.00010547,2]
[351799134,1738792244815,-500.0,0.00010547,2]
[351799136,1738792244824,-500.0,0.00010547,2]
[351799138,1738792244833,-152.202475,0.00010566,2]
[351799140,1738792244842,-150.0,0.00010642,2]
[351799142,1738792244850,-150.0,0.00010642,2]
[351799144,1738792244859,-150.0,0.00010642,2]
[351799145,1738792244869,-300.27,0.00010642,2]
[351799147,1738792244879,-150.0,0.00010642,2]
[351799150,1738792244889,-150.0,0.00010642,2]
[351799152,1738792244898,-150.0,0.00010642,2]
[351799154,1738792244908,-321.05,0.00010683,2]
[351799156,1738792244918,-500.0,0.00010683,2]
[351799158,1738792244928,-396.56,0.00010683,2]
[351799160,1738792244938,-500.0,0.00010683,2]
[351799162,1738792244949,-500.0,0.00010683,2]
[351799164,1738792244960,-613.31,0.00010683,2]
[351799166,1738792244971,-500.0,0.00010683,2]
[351799168,1738792244983,-500.0,0.00010683,2]
[351799170,1738792244993,-411.44,0.00010683,2]
[351799172,1738792245002,-500.0,0.00010683,2]
[351799174,1738792245012,-500.0,0.00010683,2]
[351799176,1738792245021,-255.43,0.00010683,2]
[351799178,1738792245032,-500.0,0.00010683,2]
[351799180,1738792245045,-257.76,0.00010683,2]
[351799182,1738792245055,-269.33,0.00010683,2]
[351799184,1738792245066,-384.08,0.00010683,2]
[351799186,1738792245075,-500.0,0.00010683,2]
[351799188,1738792245087,-192.05,0.00010683,2]
[351799190,1738792245096,-512.7,0.00010683,2]
[351799192,1738792245105,-500.0,0.00010683,2]
[351799194,1738792245117,-441.43,0.00010683,2]
[351799196,1738792245127,-500.0,0.00010683,2]
[351799198,1738792245137,-561.35,0.00010683,2]
[351799200,1738792245146,-178.84,0.00010683,2]
[351799202,1738792245156,-441.98,0.00010683,2]
[351799204,1738792245165,-275.16,0.00010683,2]
[351799206,1738792245175,-620.03,0.00010683,2]
[351799208,1738792245185,-260.98,0.00010683,2]
[351799210,1738792245195,-500.0,0.00010683,2]
[351799211,1738792245204,-500.0,0.00010683,2]
[351799213,1738792245213,-391.5,0.00010683,2]
[351799214,1738792245223,-500.0,0.00010683,2]
[351799216,1738792245234,-485.74,0.00010683,2]
[351799218,1738792245243,-340.97,0.00010683,2]
[351799219,1738792245252,-500.0,0.00010683,2]
[351799221,1738792245262,-500.0,0.00010683,2]
[351799222,1738792245272,-500.0,0.00010683,2]
[351799224,1738792245282,-500.0,0.00010683,2]
[351799226,1738792245291,-152.202475,0.00010683,2]
[351799227,1738792245301,-203.2,0.00010683,2]
[351799229,1738792245311,-500.0,0.00010683,2]
[351799230,1738792245321,-500.0,0.00010683,2]
[351799232,1738792245331,-1037.66,0.00010683,2]
[351799234,1738792245341,-500.0,0.00010683,2]
[351799235,1738792245350,-500.0,0.00010683,2]
[351799237,1738792245360,-500.0,0.00010683,2]
[351799238,1738792245369,-500.0,0.00010683,2]
[351799241,1738792245379,-500.0,0.00010683,2]
[351799243,1738792245389,-500.0,0.00010683,2]
[351799245,1738792245398,-500.0,0.00010683,2]
[351799246,1738792245408,-500.0,0.00010683,2]
[351799248,1738792245418,-197.51,0.00010683,2]
[351799250,1738792245427,-500.0,0.00010683,2]
[351799251,1738792245436,-500.0,0.00010683,2]
[351799253,1738792245446,-500.0,0.00010683,2]
[351799254,1738792245456,-412.36,0.00010683,2]
[351799256,1738792245465,-781.52,0.00010683,2]
[351799258,1738792245475,-500.0,0.00010683,2]
[351799259,1738792245485,-500.0,0.00010683,2]
[351799261,1738792245494,-500.0,0.00010683,2]
[351799263,1738792245504,-585.39,0.00010683,2]
[351799264,1738792245514,-500.0,0.00010683,2]
[351799266,1738792245524,-500.0,0.00010683,2]
[351799268,1738792245534,-194.0,0.00010683,2]
[351799270,1738792245544,-505.74,0.00010683,2]
[351799271,1738792245553,-500.0,0.00010683,2]
[351799273,1738792245562,-582.53,0.00010683,2]
[351799275,1738792245573,-500.0,0.00010683,2]
[351799276,1738792245583,-346.25,0.00010683,2]
[351799278,1738792245593,-223.92,0.00010683,2]
[351799280,1738792245602,-500.0,0.00010683,2]
[351799282,1738792245612,-500.0,0.00010683,2]
[351799283,1738792245622,-318.53,0.00010683,2]
[351799285,1738792245631,-500.0,0.00010683,2]
[351799287,1738792245641,-500.0,0.00010683,2]
[351799288,1738792245650,-500.0,0.00010683,2]
[351799290,1738792245660,-500.0,0.00010683,2]
[351799292,1738792245670,-500.0,0.00010683,2]
[351799294,1738792245679,-500.0,0.00010683,2]
[351799295,1738792245689,-500.0,0.00010683,2]
[351799297,1738792245699,-500.0,0.00010683,2]
[351799299,1738792245708,-500.0,0.00010683,2]
[351799301,1738792245718,-287.24,0.00010683,2]
[351799302,1738792245728,-500.0,0.00010683,2]
[351799304,1738792245738,-500.0,0.00010683,2]
[351799306,1738792245748,-500.0,0.00010683,2]
[351799308,1738792245758,-500.0,0.00010683,2]
[351799309,1738792245767,-1137.64,0.00010683,2]
[351799311,1738792245777,-341.64,0.00010683,2]
[351799313,1738792245787,-202.6,0.00010683,2]
[351799314,1738792245796,-500.0,0.00010683,2]
[351799316,1738792245806,-500.0,0.00010683,2]
[351799318,1738792245816,-500.0,0.00010683,2]
[351799320,1738792245825,-500.0,0.00010683,2]
[351799321,1738792245835,-500.0,0.00010683,2]
[351799323,1738792245845,-590.33,0.00010683,2]
[351799325,1738792245856,-500.0,0.00010683,2]
[351799327,1738792245865,-500.0,0.00010683,2]
[351799328,1738792245874,-500.0,0.00010683,2]
[351799330,1738792245885,-500.0,0.00010683,2]
[351799332,1738792245895,-500.0,0.00010683,2]
[351799334,1738792245904,-313.75357324,0.00010683,2]
[351799335,1738792245913,-500.0,0.00010683,2]
[351799337,1738792245922,-500.0,0.00010683,2]
[351799339,1738792245931,-500.0,0.00010683,2]
[351799341,1738792245941,-156.731078,0.00010683,2]
[351799342,1738792245950,-375.99,0.00010683,2]
[351799344,1738792245960,-500.0,0.00010683,2]
[351799346,1738792245971,-500.0,0.00010683,2]
[351799348,1738792245980,-500.0,0.00010683,2]
[351799349,1738792245989,-500.0,0.00010683,2]
[351799351,1738792245999,-594.83343893,0.00010683,2]
[351799353,1738792246009,-500.0,0.00010683,2]
[351799354,1738792246018,-500.0,0.00010683,2]
[351799356,1738792246029,-500.0,0.00010683,2]
[351799358,1738792246042,-500.0,0.00010683,2]
[351799360,1738792246052,-500.0,0.00010683,2]
[351799362,1738792246062,-500.0,0.00010683,2]
[351799363,1738792246071,-500.0,0.00010683,2]
[351799365,1738792246081,-163.38,0.00010683,2]
[351799367,1738792246091,-193.53,0.00010684,2]
[351799368,1738792246100,-624.52105823,0.00010684,2]
[351799370,1738792246112,-500.0,0.00010684,2]
[351799372,1738792246121,-500.0,0.00010684,2]
[351799373,1738792246131,-500.0,0.00010684,2]
[351799375,1738792246140,-500.0,0.00010684,2]
[351799377,1738792246150,-500.0,0.00010684,2]
[351799378,1738792246159,-500.0,0.00010684,2]
[351799380,1738792246169,-500.0,0.00010684,2]
[351799382,1738792246179,-500.0,0.00010684,2]
[351799384,1738792246188,-500.0,0.00010684,2]
[351799385,1738792246197,-500.0,0.00010684,2]
[351799387,1738792246207,-367.33637077,0.00010684,2]
[351799389,1738792246216,-174.53279201,0.00010684,2]
[351799390,1738792246225,-500.0,0.00010684,2]
[351799392,1738792246235,-500.0,0.00010684,2]
[351799394,1738792246244,-295.39650872,0.00010684,2]
[351799396,1738792246254,-182.96617726,0.00010684,2]
[351799397,1738792246263,-151.78958756,0.00010684,2]
[351799399,1738792246273,-500.0,0.00010684,2]
[351799401,1738792246283,-500.0,0.00010684,2]
[351799403,1738792246292,-291.72055172,0.00010684,2]
[351799404,1738792246303,-500.0,0.00010684,2]
[351799406,1738792246312,-500.0,0.00010684,2]
[351799408,1738792246322,-500.0,0.00010684,2]
[351799409,1738792246331,-500.0,0.00010684,2]
[351799411,1738792246341,-500.0,0.00010684,2]
[351799413,1738792246351,-165.37,0.00010684,2]
[351799414,1738792246360,-500.0,0.00010684,2]
[351799416,1738792246370,-500.0,0.00010684,2]
[351799418,1738792246379,-329.63,0.00010684,2]
[351799420,1738792246389,-152.202475,0.00010703,2]
[351799421,1738792246398,-156.731078,0.00010703,2]
[351799423,1738792246408,-580.45527341,0.000108,2]
[351799425,1738792246418,-173.34649049,0.000108,2]
[351799426,1738792246427,-150.0,0.000108,2]
[351799428,1738792246437,-286.39552833,0.000108,2]
[351799430,1738792246446,-150.0,0.000108,2]
[351799432,1738792246455,-580.45527341,0.00010812,2]
[351799433,1738792246465,-173.34649049,0.00010812,2]
[351799435,1738792246474,-286.39552833,0.00010812,2]
[351799437,1738792246484,-500.0,0.0001082,2]
[351799438,1738792246493,-500.0,0.0001082,2]
[351799440,1738792246503,-549.7,0.0001082,2]
[351799442,1738792246512,-173.39,0.0001082,2]
[351799444,1738792246522,-500.0,0.0001082,2]
[351799445,1738792246531,-273.08,0.0001082,2]
[351799447,1738792246541,-274.68,0.0001082,2]
[351799449,1738792246551,-278.64,0.0001082,2]
[351799451,1738792246561,-500.0,0.0001082,2]
[351799453,1738792246571,-461.1,0.0001082,2]
[351799455,1738792246581,-500.0,0.0001082,2]
[351799457,1738792246590,-500.0,0.0001082,2]
[351799459,1738792246600,-500.0,0.0001082,2]
[351799461,1738792246610,-500.0,0.0001082,2]
[351799462,1738792246619,-500.0,0.0001082,2]
[351799463,1738792246628,-500.0,0.0001082,2]
[351799464,1738792246637,-500.0,0.0001082,2]
[351799465,1738792246646,-500.0,0.0001082,2]
[351799466,1738792246655,-152.202475,0.0001082,2]
[351799467,1738792246664,-500.0,0.0001082,2]
[351799468,1738792246672,-500.0,0.0001082,2]
[351799469,1738792246681,-1037.66,0.0001082,2]
[351799470,1738792246690,-500.0,0.0001082,2]
[351799471,1738792246699,-500.0,0.0001082,2]
[351799473,1738792246828,-500.0,0.0001082,2]
[351799474,1738792246854,-500.0,0.0001082,2]
[351799476,1738792246864,-500.0,0.0001082,2]
[351799478,1738792246873,-500.0,0.0001082,2]
[351799480,1738792246882,-500.0,0.0001082,2]
[351799482,1738792246891,-500.0,0.0001082,2]
[351799484,1738792246899,-500.0,0.0001082,2]
[351799486,1738792246908,-195.3,0.0001082,2]
[351799488,1738792246917,-500.0,0.0001082,2]
[351799489,1738792246926,-781.52,0.0001082,2]
[351799491,1738792246935,-500.0,0.0001082,2]
[351799493,1738792246944,-500.0,0.0001082,2]
[351799495,1738792246954,-500.0,0.0001082,2]
[351799497,1738792246963,-342.12,0.0001082,2]
[351799499,1738792246972,-500.0,0.0001082,2]
[351799502,1738792246983,-505.74,0.0001082,2]
[351799504,1738792246994,-500.0,0.0001082,2]